fUSD/lending_fUSD_20250110
["ID","MTS","AMOUNT","RATE_DAILY","PERIOD"]
[348431845,1736526652067,-1715.76,9.833e-05,2]
[348431846,1736526652090,-782.06992096,9.837e-05,2]
[348431847,1736526652103,-1744.88007904,9.837e-05,2]
[348431848,1736526652113,-1747.06,9.837e-05,2]
[348431849,1736526652123,-500.0,9.837e-05,2]
[348431850,1736526652133,-974.64,9.837e-05,2]
[348431851,1736526652143,-2530.3,9.837e-05,2]
[348431852,1736526652153,-1009.12,9.837e-05,2]
[348431853,1736526652164,-500.0,9.837e-05,2]
[348431854,1736526652174,-675.47,9.844e-05,2]
[348431855,1736526652184,-791.43,9.844e-05,2]
[348431856,1736526652194,-500.0,9.844e-05,2]
[348431857,1736526652205,-500.0,9.844e-05,2]
[348431858,1736526652217,-500.0,9.844e-05,2]
[348431859,1736526652228,-917.67,9.844e-05,2]
[348431860,1736526652239,-500.0,9.844e-05,2]
[348431861,1736526652251,-527.31,9.844e-05,2]
[348431862,1736526652262,-500.0,9.844e-05,2]
[348431863,1736526652272,-500.0,9.844e-05,2]
[348431864,1736526652283,-738.08,9.844e-05,2]
[348431865,1736526652293,-888.17,9.844e-05,2]
[348431866,1736526652302,-750.01,9.844e-05,2]
[348431867,1736526652312,-913.7,9.844e-05,2]
[348431868,1736526652322,-500.0,9.844e-05,2]
[348431869,1736526652332,-775.46,9.844e-05,2]
[348431870,1736526652342,-2617.15,9.844e-05,2]
[348431871,1736526652353,-707.41,9.844e-05,2]
[348431872,1736526652363,-2140.32,9.844e-05,2]
[348431873,1736526652373,-872.44402036,9.844e-05,2]
[348431874,1736526652387,-4941.98597964,9.844e-05,2]
[348431875,1736526652396,-789.55,9.844e-05,2]
[348431876,1736526652405,-500.0,9.844e-05,2]
[348431877,1736526652416,-1360.74,9.844e-05,2]
[348431878,1736526652426,-1563.64,9.844e-05,2]
[348431879,1736526652437,-3003.12,9.844e-05,2]
[348431880,1736526652447,-986.0,9.844e-05,2]
[348431881,1736526652456,-578.13,9.844e-05,2]
[348431882,1736526652466,-803.09,9.844e-05,2]
[348431883,1736526652476,-500.0,9.844e-05,2]
[348431884,1736526652485,-1747.62,9.844e-05,2]
[348431885,1736526652495,-1019.51,9.845e-05,2]
[348431886,1736526652505,-1063.42,9.845e-05,2]
[348431887,1736526652515,-742.49,9.845e-05,2]
[348431888,1736526652526,-500.0,9.845e-05,2]
[348431889,1736526652536,-522.95,9.845e-05,2]
[348431890,1736526652545,-652.08,9.845e-05,2]
[348431891,1736526652555,-500.0,9.845e-05,2]
[348431892,1736526652566,-500.0,9.845e-05,2]
[348431893,1736526652577,-728.91,9.845e-05,2]
[348431894,1736526652586,-500.0,9.845e-05,2]
[348431895,1736526652595,-3107.82,9.845e-05,2]
[348431896,1736526652605,-1782.93,9.845e-05,2]
[348431897,1736526652616,-4464.57,9.845e-05,2]
[348431898,1736526652627,-4547.62,9.845e-05,2]
[348431899,1736526652636,-500.0,9.845e-05,2]
[348431900,1736526652645,-1997.09,9.845e-05,2]
[348431901,1736526652656,-74862.72745186,9.88e-05,2]
[348431902,1736526652669,-4173.47560101,9.88e-05,2]
[348431903,1736526652680,-22311.9363686,9.88e-05,2]
[348431904,1736526652689,-465.7,9.883e-05,2]
[348431905,1736526652698,-3200.0,9.9e-05,3]
[348431906,1736526652707,-1655.34063255,9.924e-05,2]
[348431907,1736526652719,-1027.43750262,9.924e-05,2]
[348431908,1736526652730,-1213.22186483,9.924e-05,2]
[348431909,1736526652739,-150.46648446,9.924e-05,2]
[348431910,1736526652752,-1864.53351554,9.924e-05,2]
[348431911,1736526652762,-1267.0,9.924e-05,2]
[348431912,1736526652773,-151.0,9.924e-05,2]
[348431913,1736526652782,-1244.922,9.924e-05,2]
[348431914,1736526652793,-1212.64,9.945e-05,2]
[348431915,1736526652802,-770.07,9.945e-05,2]
[348431916,1736526652811,-658.36,9.945e-05,2]
[348431917,1736526652820,-524.68,9.945e-05,2]
[348431918,1736526652829,-1279.37,9.945e-05,2]
[348431919,1736526652838,-744.14,9.945e-05,2]
[348431920,1736526652848,-706.63,9.945e-05,2]
[348431921,1736526652857,-755.51,9.945e-05,2]
[348431922,1736526652867,-500.0,9.945e-05,2]
[348431923,1736526652877,-500.0,9.945e-05,2]
[348431924,1736526652888,-500.0,9.945e-05,2]
[348431925,1736526652903,-715.27,9.945e-05,2]
[348431926,1736526652912,-607.75,9.945e-05,2]
[348431927,1736526652921,-734.44,9.945e-05,2]
[348431928,1736526652931,-887.0,9.945e-05,2]
[348431929,1736526652941,-724.8,9.945e-05,2]
[348431930,1736526652951,-720.47,9.945e-05,2]
[348431931,1736526652960,-1268.56,9.945e-05,2]
[348431932,1736526652969,-378.94072173,9.945e-05,2]
[348431933,1736526652981,-121.05927827,9.945e-05,2]
[348431934,1736526652991,-180.86269332,9.945e-05,2]
[348431935,1736526653003,-644.21730668,9.945e-05,2]
[348431936,1736526653012,-2668.86,9.945e-05,2]
[348431937,1736526653021,-559.8,9.945e-05,2]
[348431938,1736526653031,-500.0,9.945e-05,2]
[348431939,1736526653041,-881.05,9.945e-05,2]
[348431940,1736526653050,-1278.24,9.945e-05,2]
[348431941,1736526653059,-500.0,9.945e-05,2]
[348431942,1736526653070,-766.09,9.945e-05,2]
[348431943,1736526653079,-500.0,9.945e-05,2]
[348431944,1736526653089,-665.06,9.945e-05,2]
[348431945,1736526653099,-977.48,9.945e-05,2]
[348431946,1736526653108,-1177.722205,9.945e-05,2]
[348431947,1736526653117,-777.07,9.945e-05,2]
[348431948,1736526653128,-633.09,9.945e-05,2]
[348431949,1736526653137,-1242.969586,9.945e-05,2]
[348431950,1736526653146,-877.49,9.945e-05,2]
[348431951,1736526653156,-3881.78,9.945e-05,2]
[348431952,1736526653165,-627.41,9.945e-05,2]
[348431953,1736526653174,-947.62,9.945e-05,2]
[348431954,1736526653183,-749.46,9.945e-05,2]
[348431955,1736526653193,-720.66,9.945e-05,2]
[348431956,1736526653202,-516.68,9.945e-05,2]
[348431957,1736526653212,-535.15,9.945e-05,2]
[348431958,1736526653221,-1234.19208766,9.945e-05,2]
[348431959,1736526653237,-242.18791234,9.945e-05,2]
[348431960,1736526653246,-103.83955716,9.945e-05,2]
[348431961,1736526653258,-534.73044284,9.945e-05,2]
[348431962,1736526653267,-598.07,9.945e-05,2]
[348431963,1736526653277,-722.91,9.945e-05,2]
[348431964,1736526653286,-585.93,9.945e-05,2]
[348431965,1736526653295,-351.38273782,9.945e-05,2]
[348431966,1736526653307,-399.67559721,9.945e-05,2]
[348431967,1736526653319,-294.94166497,9.945e-05,2]
[348431968,1736526653328,-500.0,9.945e-05,2]
[348431969,1736526653337,-664.5,9.945e-05,2]
[348431970,1736526653347,-1186.89769864,9.945e-05,2]
[348431971,1736526653359,-2222.95230136,9.945e-05,2]
[348431972,1736526653369,-980.89,9.945e-05,2]
[348431973,1736526653380,-1013.14,9.945e-05,2]
[348431974,1736526653390,-834.53,9.945e-05,2]
[348431975,1736526653399,-2944.52,9.945e-05,2]
[348431976,1736526653409,-834.57,9.945e-05,2]
[348431977,1736526653419,-4035.09,9.945e-05,2]
[348431978,1736526653428,-572.76,9.945e-05,2]
[348431979,1736526653439,-1109.03,9.945e-05,2]
[348431980,1736526653448,-500.0,9.945e-05,2]
[348431981,1736526653457,-500.0,9.945e-05,2]
[348431982,1736526653467,-531.36,9.945e-05,2]
[348431983,1736526653476,-671.78,9.945e-05,2]
[348431984,1736526653485,-3389.47,9.945e-05,2]
[348431985,1736526653495,-500.0,9.945e-05,2]
[348431986,1736526653504,-3432.27,9.945e-05,2]
[348431987,1736526653513,-170.10373935,9.946e-05,2]
[348431988,1736526653523,-500.0,9.946e-05,2]
[348431989,1736526653532,-500.0,9.946e-05,2]
[348431990,1736526653541,-500.0,9.946e-05,2]
[348431991,1736526653551,-572.5465665,9.946e-05,2]
[348431992,1736526653560,-542.51,9.946e-05,2]
[348431993,1736526653569,-888.23,9.946e-05,2]
[348431994,1736526653581,-599.78,9.946e-05,2]
[348431995,1736526653591,-500.0,9.946e-05,2]
[348431996,1736526653600,-500.29,9.946e-05,2]
[348431997,1736526653610,-500.0,9.946e-05,2]
[348431998,1736526653619,-1058.61,9.946e-05,2]
[348431999,1736526653630,-700.44,9.946e-05,2]
[348432000,1736526653639,-905.71,9.946e-05,2]
[348432001,1736526653648,-419.94088966,9.946e-05,2]
[348432002,1736526653658,-1172.36,9.946e-05,2]
[348432003,1736526653667,-500.0,9.946e-05,2]
[348432004,1736526653676,-611.14,9.946e-05,2]
[348432005,1736526653686,-500.0,9.946e-05,2]
[348432006,1736526653698,-780.83,9.946e-05,2]
[348432007,1736526653707,-500.0,9.946e-05,2]
[348432008,1736526653717,-500.0,9.946e-05,2]
[348432009,1736526653726,-11617.0618383,9.988e-05,2]
[348432010,1736526653736,-87754.90705299,9.994e-05,2]
[348432011,1736526653745,-403551.10245823,9.998e-05,2]
[348432012,1736526653757,-115207.56950521,9.998e-05,2]
[348432013,1736526653768,-7156.4203425,9.998e-05,2]
[348432014,1736526653779,-518.424,9.998e-05,2]
[348432015,1736526653791,-564.6989879,9.998e-05,2]
[348432016,1736526654091,-727.45129461,9.998e-05,2]
[348432017,1736526654103,-5003.22149132,9.998e-05,2]
[348432018,1736526654129,-22322.03929,9.998e-05,2]
[348432019,1736526654141,-3932.74721704,9.998e-05,2]
[348432020,1736526654152,-5221.86305,9.998e-05,2]
[348432021,1736526654163,-13636.89355177,9.998e-05,2]
[348432022,1736526654177,-7046.58569335,9.998e-05,2]
[348432023,1736526654187,-619.93917414,9.999e-05,2]
[348432024,1736526654198,-32681.42537251,0.0001,2]
[348432025,1736526654212,-4717.6,0.0001,2]
[348432026,1736526654224,-2417.74338737,0.0001,2]
[348432027,1736526654237,-1092.13677785,0.0001,2]
[348432028,1736526654251,-4245.22314852,0.0001,2]
[348432029,1736526654263,-4845.87131375,0.0001,2]
[348432030,1736526654273,-9313.62671079,0.0001,2]
[348432031,1736526654294,-2033.70692799,0.0001,2]
[348432032,1736526654306,-4422.2573921,0.0001,2]
[348432033,1736526654321,-1164.90682513,0.0001,2]
[348432034,1736526654334,-1341.47799,0.0001,2]
[348432035,1736526654348,-434.67999985,0.0001,2]
[348432036,1736526654359,-833.87987711,0.0001,2]
[348432037,1736526654383,-730.07140233,0.0001,2]
[348432038,1736526654394,-652.62529538,0.0001,2]
[348432039,1736526654406,-9653.80000013,0.0001,2]
[348432040,1736526654421,-355056.02147919,0.0001,2]
[348432041,1736526654431,-324.84265656,0.0001,2]
[348432042,1736526654441,-266615.23918179,0.0001,2]
[348432043,1736526654451,-9292.61741871,0.0001,2]
[348432044,1736526655181,-579.82,8.736e-05,2]
[348432045,1736526655191,-222.89755768,8.736e-05,2]
[348432046,1736526655207,-500.0,8.748e-05,2]
[348432047,1736526655219,-500.0,9.022e-05,2]
[348432048,1736526655230,-265.34,9.296e-05,2]
[348432049,1736526655243,-150.0,9.924e-05,2]
[348432050,1736526655255,-707.38258129,0.0001,2]
[348432051,1736526655267,-2131.25375987,0.0001,2]
[348432052,1736526655277,-359.02,0.0001,2]
[348432053,1736526655287,-36801.65102056,0.0001,2]
[348432054,1736526655302,-1411.3,0.0001,2]
[348432055,1736526655339,-56569.56954568,0.0001,2]
[348432056,1736526655349,-34373.80112443,0.0001,2]
[348432057,1736526655361,-418.18435819,0.0001,2]
[348432058,1736526655372,-1613.70970627,0.0001,2]
[348432059,1736526655387,-3876.25222147,0.0001,2]
[348432060,1736526655737,-28152.95384154,0.0001,2]
[348432061,1736526655750,-1839.99999992,0.0001,2]
[348432062,1736526655831,-104673.61365663,0.0001,2]
[348432063,1736526655842,-4000.0,0.0001,3]
[348432064,1736526655852,-142965.4815281,0.0001,2]
[348432065,1736526655866,-918.0,0.0001,2]
[348432066,1736526655879,-2704.598,0.0001,2]
[348432067,1736526655892,-1009.0940635,0.0001,2]
[348432068,1736526655904,-328362.60466164,0.0001,2]
[348432069,1736526655914,-1686.81150001,0.0001,2]
[348432070,1736526655925,-3000.0,0.0001,2]
[348432071,1736526655936,-2731.93733188,0.0001,2]
[348432072,1736526655947,-2731.9373318,0.0001,2]
[348432073,1736526655958,-2731.9373318,0.0001,2]
[348432074,1736526655969,-2731.9373318,0.0001,2]
[348432075,1736526655979,-2731.9373318,0.0001,2]
[348432076,1736526655988,-2731.9373318,0.0001,2]
[348432077,1736526655998,-2731.9373318,0.0001,2]
[348432078,1736526656008,-2731.9373318,0.0001,2]
[348432079,1736526656018,-2731.9373318,0.0001,2]
[348432080,1736526656029,-2817.70267283,0.0001,2]
[348432081,1736526656040,-2731.9373318,0.0001,2]
[348432082,1736526656050,-2731.9373318,0.0001,2]
[348432083,1736526656060,-250.0,0.0001,2]
[348432084,1736526656071,-250.0,0.0001,2]
[348432085,1736526656082,-250.0,0.0001,2]
[348432086,1736526656094,-250.0,0.0001,2]
[348432087,1736526656105,-250.0,0.0001,2]
[348432088,1736526656117,-250.0,0.0001,2]
[348432089,1736526656127,-250.0,0.0001,2]
[348432090,1736526656140,-250.0,0.0001,2]
[348432091,1736526656151,-250.0,0.0001,2]
[348432092,1736526656161,-250.0,0.0001,2]
[348432093,1736526656170,-2731.9373318,0.0001,2]
[348432094,1736526656180,-250.0,0.0001,2]
[348432095,1736526656190,-250.0,0.0001,2]
[348432096,1736526656202,-250.0,0.0001,2]
[348432097,1736526656213,-250.0,0.0001,2]
[348432098,1736526656224,-250.0,0.0001,2]
[348432099,1736526656234,-250.0,0.0001,2]
[348432100,1736526656245,-250.0,0.0001,2]
[348432101,1736526656254,-250.0,0.0001,2]
[348432102,1736526656264,-250.0,0.0001,2]
[348432103,1736526656275,-250.0,0.0001,2]
[348432104,1736526656286,-250.0,0.0001,2]
[348432105,1736526656300,-250.0,0.0001,2]
[348432106,1736526656310,-250.0,0.0001,2]
[348432107,1736526656320,-250.0,0.0001,2]
[348432108,1736526656330,-250.0,0.0001,2]
[348432109,1736526656340,-2731.9373318,0.0001,2]
[348432110,1736526656349,-2731.9373318,0.0001,2]
[348432111,1736526656360,-13596.99568756,0.0001,2]
[348432112,1736526656370,-250.0,0.0001,2]
[348432113,1736526656383,-649.02900414,0.0001,2]
[348432114,1736526656393,-2731.9373318,0.0001,2]
[348432115,1736526656403,-649.02900414,0.0001,2]
[348432116,1736526656413,-2731.9373318,0.0001,2]
[348432117,1736526656423,-2731.9373318,0.0001,2]
[348432118,1736526656433,-813.61846829,0.0001,2]
[348432119,1736526656443,-362.43767852,0.0001,2]
[348432120,1736526656454,-362.43767835,0.0001,2]
[348432121,1736526656465,-362.43767835,0.0001,2]
[348432122,1736526656475,-362.43767835,0.0001,2]
[348432123,1736526656485,-362.43767835,0.0001,2]
[348432124,1736526656496,-362.43767835,0.0001,2]
[348432125,1736526656507,-362.43767835,0.0001,2]
[348432126,1736526656517,-362.43767835,0.0001,2]
[348432127,1736526656527,-362.43767835,0.0001,2]
[348432128,1736526656538,-362.43767835,0.00010003,2]
[348432129,1736526656548,-10514.19539463,0.00010073,4]
[348432130,1736526656560,-150.0,0.00010098,2]
[348432131,1736526656571,-500.0,0.00010105,2]
[348432132,1736526656584,-500.0,0.00010105,2]
[348432133,1736526656595,-500.0,0.00010105,2]
[348432134,1736526656605,-1284.08,0.00010105,2]
[348432135,1736526656616,-500.0,0.00010105,2]
[348432136,1736526656626,-508.30161474,0.00010105,2]
[348432137,1736526656639,-500.0,0.00010105,2]
[348432138,1736526656649,-500.0,0.00010105,2]
[348432139,1736526656659,-500.0,0.00010105,2]
[348432140,1736526656670,-500.0,0.00010105,2]
[348432141,1736526656679,-500.0,0.00010105,2]
[348432142,1736526656689,-1209.53,0.00010105,2]
[348432143,1736526656700,-500.0,0.00010105,2]
[348432144,1736526656711,-215.58,0.00010105,2]
[348432145,1736526656722,-500.0,0.00010105,2]
[348432146,1736526656731,-500.0,0.00010105,2]
[348432147,1736526656741,-821.67,0.00010105,2]
[348432148,1736526656751,-905.74,0.00010105,2]
[348432149,1736526656760,-500.0,0.00010105,2]
[348432150,1736526656770,-1093.48,0.00010105,2]
[348432151,1736526656779,-1575.75,0.00010105,2]
[348432152,1736526656789,-500.0,0.00010105,2]
[348432153,1736526656799,-1869.87,0.00010105,2]
[348432154,1736526656822,-500.0,0.00010105,2]
[348432155,1736526656833,-1761.29,0.00010105,2]
[348432156,1736526656843,-500.0,0.00010105,2]
[348432157,1736526656852,-500.0,0.00010105,2]
[348432158,1736526656862,-4066.7,0.00010105,2]
[348432159,1736526656872,-7420.1,0.00010105,2]
[348432160,1736526656884,-564.67,0.00010105,2]
[348432161,1736526656894,-614.37,0.00010105,2]
[348432162,1736526656905,-755.52,0.00010105,2]
[348432163,1736526656915,-500.0,0.00010105,2]
[348432164,1736526656925,-500.0,0.00010105,2]
[348432165,1736526656935,-950.25,0.00010105,2]
[348432166,1736526656945,-958.92,0.00010105,2]
[348432167,1736526656956,-1213.58,0.00010105,2]
[348432168,1736526656966,-1062.5,0.00010105,2]
[348432169,1736526656976,-394.05579806,0.00010105,2]
[348432170,1736526656987,-550.55,0.00010105,2]
[348432171,1736526656998,-2093.46,0.00010105,2]
[348432172,1736526657008,-500.0,0.00010105,2]
[348432173,1736526657018,-756.62,0.00010105,2]
[348432174,1736526657028,-500.0,0.00010105,2]
[348432175,1736526657038,-856.13,0.00010105,2]
[348432176,1736526657048,-889.19,0.00010105,2]
[348432177,1736526657058,-1060.71,0.00010105,2]
[348432178,1736526657069,-1309.98,0.00010105,2]
[348432179,1736526657080,-1156.72,0.00010105,2]
[348432180,1736526657090,-1405.93,0.00010105,2]
[348432181,1736526657101,-500.0,0.00010106,2]
[348432182,1736526657112,-632.36,0.00010106,2]
[348432183,1736526657123,-721.23,0.00010106,2]
[348432184,1736526657134,-616.81,0.00010106,2]
[348432185,1736526657143,-500.0,0.00010106,2]
[348432186,1736526657153,-684.39,0.00010106,2]
[348432187,1736526657163,-500.0,0.00010106,2]
[348432188,1736526657174,-500.0,0.00010106,2]
[348432189,1736526657186,-572.92,0.00010106,2]
[348432190,1736526657198,-500.0,0.00010106,2]
[348432191,1736526657210,-722.0,0.00010106,2]
[348432192,1736526657221,-500.0,0.00010106,2]
[348432193,1736526657231,-893.13,0.00010106,2]
[348432194,1736526657241,-500.0,0.00010106,2]
[348432195,1736526657252,-626.44,0.00010106,2]
[348432196,1736526657262,-709.15,0.00010106,2]
[348432197,1736526657273,-500.0,0.00010106,2]
[348432198,1736526657283,-436.887895,0.00010106,2]
[348432199,1736526657298,-184.822105,0.00010106,2]
[348432200,1736526657308,-500.0,0.00010106,2]
[348432201,1736526657318,-146.13421347,0.00010106,2]
[348432202,1736526657335,-353.86578653,0.00010106,2]
[348432203,1736526657346,-423.87579847,0.00010106,2]
[348432204,1736526657359,-76.12420153,0.00010106,2]
[348432205,1736526657371,-280.34,0.00010106,2]
[348432206,1736526657382,-526.31014906,0.00010106,2]
[348432207,1736526657393,-557.88,0.00010106,2]
[348432208,1736526657404,-500.0,0.00010106,2]
[348432209,1736526657415,-526.97,0.00010106,2]
[348432210,1736526657426,-719.27,0.00010106,2]
[348432211,1736526657437,-572.65384941,0.00010106,2]
[348432212,1736526657482,-1360.14242042,0.00010106,2]
[348432213,1736526657495,-470.0,0.00010106,2]
[348432214,1736526657508,-2935.56373017,0.00010106,2]
[348432215,1736526657519,-923.88,0.00010106,2]
[348432216,1736526657530,-500.0,0.00010106,2]
[348432217,1736526657541,-500.0,0.00010106,2]
[348432218,1736526657551,-2088.33,0.00010106,2]
[348432219,1736526657563,-505.57,0.00010106,2]
[348432220,1736526657574,-611.37,0.00010106,2]
[348432221,1736526657585,-1112.14,0.00010106,2]
[348432222,1736526657596,-3152.2,0.00010106,2]
[348432223,1736526657606,-827.89,0.00010106,2]
[348432224,1736526657617,-1072.69,0.00010106,2]
[348432225,1736526657627,-1041.01,0.00010106,2]
[348432226,1736526657641,-1604.26,0.00010106,2]
[348432227,1736526657653,-500.0,0.00010106,2]
[348432228,1736526657664,-500.0,0.00010106,2]
[348432229,1736526657675,-1463.44,0.00010106,2]
[348432230,1736526657684,-570.12,0.00010106,2]
[348432231,1736526657694,-500.0,0.00010106,2]
[348432232,1736526657704,-500.0,0.00010106,2]
[348432233,1736526657714,-1546.73,0.00010106,2]
[348432234,1736526657725,-1289.09,0.00010106,2]
[348432235,1736526657735,-757.31,0.00010106,2]
[348432236,1736526657746,-500.0,0.00010106,2]
[348432237,1736526657756,-500.0,0.00010106,2]
[348432238,1736526657766,-3061.99,0.00010106,2]
[348432239,1736526657776,-500.0,0.00010106,2]
[348432240,1736526657787,-822.45,0.00010106,2]
[348432241,1736526657797,-831.48927404,0.00010106,2]
[348432242,1736526657810,-717.79072596,0.00010106,2]
[348432243,1736526657820,-500.0,0.00010106,2]
[348432244,1736526657830,-545.28,0.00010106,2]
[348432245,1736526657839,-811.34,0.00010106,2]
[348432246,1736526657850,-566.09,0.00010106,2]
[348432247,1736526657859,-706.94,0.00010106,2]
[348432248,1736526657869,-819.27,0.00010106,2]
[348432249,1736526657879,-500.0,0.00010106,2]
[348432250,1736526657891,-806.89,0.00010107,2]
[348432251,1736526657901,-1200.4,0.00010107,2]
[348432252,1736526657911,-1021.25829341,0.00010107,2]
[348432253,1736526657923,-618.90170659,0.00010107,2]
[348432254,1736526657934,-1037.43,0.00010107,2]
[348432255,1736526657944,-1313.83,0.00010107,2]
[348432256,1736526657954,-1223.5,0.00010107,2]
[348432257,1736526657964,-613.72,0.00010107,2]
[348432258,1736526657974,-3085.89,0.00010107,2]
[348432259,1736526657984,-4072.13,0.00010107,2]
[348432260,1736526657995,-1716.51,0.00010107,2]
[348432261,1736526658005,-1122.23,0.00010107,2]
[348432262,1736526658015,-1628.58,0.00010107,2]
[348432263,1736526658026,-733.35,0.00010107,2]
[348432264,1736526658036,-2642.39,0.00010107,2]
[348432265,1736526658048,-1715.76,0.00010107,2]
[348432266,1736526658059,-2526.95,0.00010111,2]
[348432267,1736526658068,-1747.06,0.00010111,2]
[348432268,1736526658078,-974.64,0.00010111,2]
[348432269,1736526658089,-2530.3,0.00010111,2]
[348432270,1736526658099,-1009.12,0.00010111,2]
[348432271,1736526658110,-500.0,0.00010111,2]
[348432272,1736526658120,-675.47,0.00010118,2]
[348432273,1736526658130,-791.43,0.00010118,2]
[348432274,1736526658142,-500.0,0.00010118,2]
[348432275,1736526658152,-500.0,0.00010118,2]
[348432276,1736526658162,-500.0,0.00010118,2]
[348432277,1736526658172,-917.67,0.00010118,2]
[348432278,1736526658183,-500.0,0.00010118,2]
[348432279,1736526658193,-527.31,0.00010118,2]
[348432280,1736526658204,-500.0,0.00010118,2]
[348432281,1736526658214,-500.0,0.00010118,2]
[348432282,1736526658224,-738.08,0.00010118,2]
[348432283,1736526658234,-888.17,0.00010118,2]
[348432284,1736526658244,-750.01,0.00010118,2]
[348432285,1736526658254,-627.0812221,0.00010118,2]
[348432286,1736526658266,-286.6187779,0.00010118,2]
[348432287,1736526658277,-500.0,0.00010118,2]
[348432288,1736526658287,-775.46,0.00010118,2]
[348432289,1736526658298,-2617.15,0.00010118,2]
[348432290,1736526658311,-707.41,0.00010118,2]
[348432291,1736526658323,-2140.32,0.00010118,2]
[348432292,1736526658334,-5814.43,0.00010118,2]
[348432293,1736526658345,-789.55,0.00010118,2]
[348432294,1736526658356,-500.0,0.00010118,2]
[348432295,1736526658367,-1360.74,0.00010118,2]
[348432296,1736526658378,-1563.64,0.00010118,2]
[348432297,1736526658390,-3003.12,0.00010118,2]
[348432298,1736526658401,-986.0,0.00010118,2]
[348432299,1736526658411,-578.13,0.00010118,2]
[348432300,1736526658421,-803.09,0.00010118,2]
[348432301,1736526658432,-500.0,0.00010118,2]
[348432302,1736526658442,-1747.62,0.00010118,2]
[348432303,1736526658453,-1063.42,0.00010119,2]
[348432304,1736526658463,-615.00632541,0.00010119,2]
[348432305,1736526658476,-127.48367459,0.00010119,2]
[348432306,1736526658485,-500.0,0.00010119,2]
[348432307,1736526658496,-522.95,0.00010119,2]
[348432308,1736526658506,-652.08,0.00010119,2]
[348432309,1736526658516,-500.0,0.00010119,2]
[348432310,1736526658526,-500.0,0.00010119,2]
[348432311,1736526658536,-728.91,0.00010119,2]
[348432312,1736526658545,-500.0,0.00010119,2]
[348432313,1736526658555,-3107.82,0.00010119,2]
[348432314,1736526658565,-1782.93,0.00010119,2]
[348432315,1736526658577,-4464.57,0.00010119,2]
[348432316,1736526658587,-4547.62,0.00010119,2]
[348432317,1736526658597,-500.0,0.00010119,2]
[348432318,1736526658607,-1861.0,0.00010133,2]
[348432319,1736526658618,-1259.0,0.00010133,2]
[348432320,1736526658629,-820.0,0.00010133,2]
[348432321,1736526658640,-915.0,0.00010133,2]
[348432322,1736526658651,-2944.0,0.00010133,2]
[348432323,1736526658660,-3977.0,0.00010133,2]
[348432324,1736526658671,-537.0,0.00010133,2]
[348432325,1736526658682,-151.26,0.00010137,2]
[348432326,1736526658694,-368.2,0.00010137,2]
[348432327,1736526658704,-362.43767835,0.00010148,2]
[348432328,1736526658714,-150.0,0.0001015,2]
[348432329,1736526658724,-227.53,0.00010153,2]
[348432330,1736526658733,-1425.85,0.000102,2]
[348432331,1736526658744,-1000.0,0.00010216,2]
[348432332,1736526658754,-1000.0,0.00010216,2]
[348432333,1736526658763,-1000.0,0.00010216,2]
[348432334,1736526658773,-1000.0,0.00010216,2]
[348432335,1736526658783,-1000.0,0.00010216,2]
[348432336,1736526658793,-1000.0,0.00010216,2]
[348432337,1736526658804,-1000.0,0.00010216,2]
[348432338,1736526658815,-1000.0,0.00010216,2]
[348432339,1736526658827,-1000.0,0.00010216,2]
[348432340,1736526658837,-1000.0,0.00010216,2]
[348432341,1736526658847,-1212.64,0.00010219,2]
[348432342,1736526658862,-770.07,0.00010219,2]
[348432343,1736526658880,-658.36,0.00010219,2]
[348432344,1736526658896,-524.68,0.00010219,2]